Workbook

Sheet 因外省，把普通民考汉移动至汉语言(5个记录7人) (2)
A1: 新疆财经大学2018年疆内招生计划一览表
A2: 语言 | B2: 层次 | C2: 专业代码 | D2: 专业 | E2: 学制 | F2: 区 内 | I2: 其中 贫困专项计划 | K2: 其中 4+0应用型人才培养试点工作专项计划 | M2: 学费标准 | N2: 备注
F3: 合计 | G3: 文科 | H3: 理科 | I3: 文科 | J3: 理科 | K3: 文科 | L3: 理科
A4: 汉语言 | B4: 本科一批 | C4: 120204 | D4: 财务管理 | E4: 4 | F4: =G4+H4 -> 61 | G4: 35 | H4: 26 | M4: 3200
C5: 020301K | D5: 金融学 | E5: 4 | F5: =G5+H5 -> 85 | G5: 48 | H5: 37 | J5: 3 | M5: 3200 | N5: 其中国家贫困地区专项计划3名，（理）3名
B6: 合计 | F6: =SUM(F4:F5) -> 146 | G6: =G4+G5 -> 83 | H6: =H4+H5 -> 63 | J6: =J4+J5 -> 3
B7: 本科二批 | C7: 120203K | D7: 会计学 | E7: 4 | F7: =G7+H7 -> 157 | G7: 82 | H7: 75 | I7: 2 | J7: 5 | K7: 15 | L7: 15 | M7: 3200 | N7: 其中国家贫困地区专项计划4名，（文）2名，（理）2名 其中自治区贫困地区专项计划3名(面向福海县招生2名，木垒县招生1名)，（理）3名，其中4+0应用型人才培养试点工作专项计划30人，（文）15人、（理）15名
C8: 020201K | D8: 财政学 | E8: 4 | F8: 22 | G8: 13 | H8: 9 | I8: 2 | J8: 2 | M8: 3200 | N8: 其中南疆单列专项计划4名，（文）2名，（理）2名
C9: 120402 | D9: 行政管理 | E9: 4 | F9: 42 | G9: 27 | H9: 15 | I9: 2 | M9: 3200 | N9: 其中自治区贫困地区专项计划2名（面向霍城县招生1名，博乐市招生1名），（文）2名
C10: 020202 | D10: 税收学 | E10: 4 | F10: 18 | G10: 9 | H10: 9 | I10: 1 | J10: 2 | M10: 3200 | N10: 其中南疆单列专项计划3名，（文）1名，（理）2名
C11: 020101 | D11: 经济学 | E11: 4 | F11: 31 | G11: 19 | H11: 12 | I11: 1 | J11: 2 | M11: 3200 | N11: 其中国家贫困地区专项计划3名，（文）1名，（理）2名
C12: 020401 | D12: 国际经济与贸易 | E12: 4 | F12: 88 | G12: 49 | H12: 39 | M12: 3200 | N12: 要求英语单科成绩不低于95分
C13: 080901 | D13: 计算机科学与技术 | E13: 4 | F13: 30 | H13: 30 | J13: 8 | M13: 3500 | N13: 其中国家贫困地区专项计划3名，（理）3名 其中自治区贫困地区专项计划2名（面向阿勒泰市招生1名，哈巴河县招生1名），（理）2名，其中南疆单列专项计划3名，（理）3名
C14: 070101 | D14: 数学与应用数学 | E14: 4 | F14: 33 | H14: 33 | M14: 3500
C15: 020303 | D15: 保险学 | E15: 4 | F15: 13 | G15: 9 | H15: 4 | M15: 3200
C16: 050201 | D16: 英语 | E16: 4 | F16: 50 | G16: 40 | H16: 10 | M16: 3800 | N16: 要求英语单科成绩不低于100分
C17: 120901K | D17: 旅游管理 | E17: 4 | F17: 63 | G17: 40 | H17: 23 | K17: 15 | L17: 15 | M17: 3200 | N17: 其中4+0应用型人才培养试点工作专项计划30人，（文）15人、（理）15名
C18: 120801 | D18: 电子商务 | E18: 4 | F18: 27 | H18: 27 | M18: 3500
C19: 120201 | D19: 工商管理 | E19: 4 | F19: 28 | H19: 28 | M19: 3500
C20: 120206 | D20: 人力资源管理 | E20: 4 | F20: 30 | G20: 20 | H20: 10 | M20: 3200
C21: 120601 | D21: 物流管理 | E21: 4 | F21: 41 | H21: 41 | M21: 3500
C22: 050301 | D22: 新闻学 | E22: 4 | F22: 51 | G22: 51 | I22: 2 | M22: 3200 | N22: 其中自治区贫困地区专项计划2名（面向哈密市招生2名），（文）2名
C23: 050101 | D23: 汉语言文学 | E23: 4 | F23: 33 | G23: 33 | M23: 3200
C24: 120102 | D24: 信息管理与信息系统 | E24: 4 | F24: 28 | H24: 28 | M24: 3500
C25: 071201 | D25: 统计学 | E25: 4 | F25: 29 | H25: 29 | J25: 4 | M25: 3500 | N25: 其中南疆单列专项计划3名，（理）3名 其中自治区贫困地区专项计划1名（面向奇台县招生1名），（理）1名
C26: 020102 | D26: 经济统计学 | E26: 4 | F26: 43 | H26: 43 | J26: 3 | M26: 3500 | N26: 其中南疆单列专项计划3名，（理）3名
C27: 050104 | D27: 中国少数民族语言文学（维吾尔语言） | E27: 4 | F27: 40 | G27: 20 | H27: 20 | M27: 0 | N27: 民汉双语翻译人才培养计划
C28: 050103 | D28: 汉语国际教育 | E28: 4 | F28: 30 | G28: 30 | M28: 3200 | N28: 要求语文单科成绩不低于100分
C29: 030101 | D29: 法学 | E29: 4 | F29: 28 | G29: 19 | H29: 9 | I29: 3 | M29: 3200 | N29: 其中自治区贫困地区专项计划3名（面向精河县招生2名，昭苏县招生1名），（文）3名
C30: 120902 | D30: 酒店管理 | E30: 4 | F30: 33 | G30: 20 | H30: 13 | I30: 2 | J30: 1 | M30: 3200 | N30: 其中南疆单列专项计划3名，（文）2名，（理）1名
C31: 120302 | D31: 农村区域发展 | E31: 4 | F31: 37 | G31: 27 | H31: 10 | I31: 1 | M31: 3200 | N31: 其中自治区贫困地区专项计划1名（面向和布克赛尔县招生1名），（文）1名
C32: 080904K | D32: 信息安全 | E32: 4 | F32: 29 | H32: 29 | M32: 3500
C33: 120207 | D33: 审计学 | E33: 4 | F33: 20 | G33: 13 | H33: 7 | M33: 3200
C34: 120205 | D34: 国际商务 | E34: 4 | F34: 44 | G34: 32 | H34: 12 | M34: 3200
C35: 020305T | D35: 金融数学 | E35: 4 | F35: 24 | H35: 24 | M35: 3500
C36: 120202 | D36: 市场营销 | E36: 4 | F36: =G36+H36 -> 42 | G36: 32 | H36: 10 | M36: 3200
C37: 120903 | D37: 会展经济与管理 | E37: 4 | F37: 30 | G37: 15 | H37: 15 | M37: 3200
C38: 020302 | D38: 金融工程 | E38: 4 | F38: =G38+H38 -> 35 | H38: 35 | M38: 3500
B39: 合计 | F39: =SUM(F7:F38) -> 1249 | G39: =SUM(G7:G37) -> 600 | H39: =SUM(H7:H38) -> 649 | I39: =SUM(I7:I38) -> 16 | J39: =SUM(J7:J38) -> 27 | K39: =K7+K17 -> 30 | L39: =SUM(L4:L37) -> 30
B40: 汉语言总计 | F40: =F39+F6 -> 1395 | G40: =G6+G39 -> 683 | H40: =H6+H39 -> 712 | I40: 16 | J40: =J6+J39 -> 30 | K40: 30 | L40: =L39+L6 -> 30
A41: 民语言 | B41: 本科一批 | C41: 120204 | D41: 财务管理 | E41: 4 | F41: =G41+H41 -> 80 | G41: 24 | H41: 56 | I41: 5 | J41: 1 | M41: 3200 | N41: 预科一年，其中国家贫困地区专项计划3名，（文）2名、（理）1名 预科一年，其中自治区贫困专项计划3名（面向额敏县招生1名，阿勒泰市招生1名，福海县招生1名），（文）3名
C42: 020301K | D42: 金融学 | E42: 4 | F42: 90 | G42: 45 | H42: 45 | I42: 1 | J42: 1 | M42: 3200 | N42: 预科一年，其中国家贫困专项计划2名，（文）1名、（理）1名
C43: 030101 | D43: 法学 | E43: 4 | F43: 45 | G43: 30 | H43: 15 | M43: 3200
B44: 合计 | F44: 215 | G44: =SUM(G41:G43) -> 99 | H44: =SUM(H41:H43) -> 116 | I44: 6 | J44: =J41+J42+J43 -> 2
B45: 本科二批 | C45: 120203K | D45: 会计学 | E45: 4 | F45: 80 | G45: 24 | H45: 56 | I45: 2 | J45: 6 | M45: 3200 | N45: 预科一年，其中国家贫困专项计划4名，（文）2名、（理）2名 预科一年，其中自治区贫困专项计划4名（面向哈密市招生2名，奇台县招生2名），（理）4名
C46: 020201K | D46: 财政学 | E46: 4 | F46: 45 | G46: 20 | H46: 25 | I46: 2 | J46: 3 | M46: 3200 | N46: 预科一年，其中国家贫困专项计划2名，（文）1名、（理）1名 预科一年，其中自治区贫困专项计划3名（面向塔城市招生2名，哈巴河县招生1名），（理）2名，（文）1名
C47: 020101 | D47: 经济学 | E47: 4 | F47: 40 | G47: 10 | H47: 30 | I47: 1 | J47: 1 | M47: 3200 | N47: 预科一年，其中国家贫困专项计划2名，（文）1名、（理）1名
C48: 120205 | D48: 国际商务 | E48: 4 | F48: 45 | G48: 14 | H48: 31 | M48: 3200 | N48: 预科一年
C49: 080904K | D49: 信息安全 | E49: 4 | F49: 35 | G49: 0 | H49: 35 | M49: 3500 | N49: 预科一年
C50: 050301 | D50: 新闻学 | E50: 4 | F50: 35 | G50: 35 | M50: 3200 | N50: 预科一年
C51: 120202 | D51: 市场营销 | E51: 4 | F51: 45 | G51: 20 | H51: 25 | M51: 3200 | N51: 预科一年
C52: 120206 | D52: 人力资源管理 | E52: 4 | F52: 45 | G52: 20 | H52: 25 | N52: 预科一年
C53: 071201 | D53: 统计学 | E53: 4 | F53: =H53+G53 -> 50 | H53: 50 | J53: 7 | N53: 预科一年，其中南疆单列专项计划7名，（理）7名
C54: 020102 | D54: 经济统计学 | E54: 4 | F54: 50 | H54: 50 | J54: 7 | M54: 3500 | N54: 预科一年，其中南疆单列专项计划7名，（理）7名
C55: 120302 | D55: 农村区域发展 | E55: 4 | F55: 40 | G55: 10 | H55: 30 | M55: 3200 | N55: 预科一年
C56: 020303 | D56: 保险学 | E56: 4 | F56: 40 | G56: 20 | H56: 20 | I56: 7 | M56: 3200 | N56: 预科一年，其中南疆单列专项计划7名，（文）7名
C57: 120402 | D57: 行政管理 | E57: 4 | F57: 35 | G57: 15 | H57: 20 | M57: 3200 | N57: 预科一年
C58: 020202 | D58: 税收学 | E58: 4 | F58: 40 | G58: 15 | H58: 25 | I58: 4 | J58: 4 | M58: 3200 | N58: 预科一年，其中南疆单列专项计划8名，（文）4名，（理）4名
B59: 合计 | F59: =G59+H59 -> 625 | G59: =SUM(G45:G58) -> 203 | H59: =SUM(H45:H58) -> 422 | I59: =SUM(I45:I58) -> 16 | J59: =SUM(J45:J58) -> 28
B60: 民语言总计 | F60: =F59+F44 -> 840 | G60: =G59+G44 -> 302 | H60: =H59+H44 -> 538 | I60: =I44+I59 -> 22 | J60: =J44+J59 -> 30
A61: 双语班 | B61: 本科一批 | C61: 020401 | D61: 国际经济与贸易 | E61: 4 | F61: =SUM(G61:H61) -> 40 | H61: 40 | J61: 12 | M61: 3200 | N61: 其中国家贫困地区专项计划3名，（理）3名 其中南疆单列专项计划9名，（理）9名
B62: 合计 | F62: =SUM(F61:F61) -> 40 | H62: =SUM(H61:H61) -> 40 | J62: 12
B63: 本科二批 | C63: 020101 | D63: 经济学 | E63: 4 | F63: =SUM(G63:H63) -> 40 | H63: 40 | J63: 5 | M63: 3200 | N63: 其中国家贫困地区专项计划4名，（理）4名 其中自治区贫困专项计划1名（面向霍城县招生1名），（理）1名
C64: 080901 | D64: 计算机科学与技术 | E64: 4 | F64: =SUM(G64:H64) -> 40 | H64: 40 | J64: 14 | M64: 3500 | N64: 其中国家贫困地区专项计划4名，（理）4名 其中南疆单列专项计划10名，（理）10名
C65: 120901K | D65: 旅游管理 | E65: 4 | F65: =SUM(G65:H65) -> 45 | H65: 45 | M65: 3200
C66: 120601 | D66: 物流管理 | E66: 4 | F66: =SUM(G66:H66) -> 70 | H66: 70 | L66: 30 | M66: 3200 | N66: 其中4+0应用型人才培养试点工作专项计划30人，（理）30人
C67: 120201 | D67: 工商管理 | E67: 4 | F67: =G67+H67 -> 79 | H67: 79 | M67: 3200
C68: 120203K | D68: 会计学 | E68: 4 | F68: =SUM(G68:H68) -> 90 | G68: 1 | H68: 89 | J68: 15 | M68: 3200 | N68: 其中南疆单列专项计划10名，（理）10名 其中自治区贫困地区专项计划5名（面向阿勒泰市招生2名，额敏县招生1名，昭苏县招生1名，焉耆县招生1名），（理）5名，其中高水平运动员1名，（文）1名
C69: 120205 | D69: 国际商务 | E69: 4 | F69: =G69+H69 -> 40 | H69: 40
C70: 020202 | D70: 税收学 | E70: 4 | F70: 40 | H70: 40 | J70: 7 | M70: 3200 | N70: 其中国家贫困地区专项计划4名，（理）4名 其中自治区贫困专项计划3名（面向布尔津县招生1名，塔城市招生1名，伊吾县招生1名），（理）3名
C71: 020102 | D71: 经济统计学 | E71: 4 | F71: 50 | H71: 50 | J71: 10 | M71: 3500 | N71: 其中南疆单列专项计划10名，（理）10名
C72: 050102 | D72: 汉语言 | E72: 4 | F72: 35 | H72: 35 | M72: 3200
C73: 020305T | D73: 金融数学 | E73: 4 | F73: =SUM(G73:H73) -> 40 | H73: 40 | J73: 2 | M73: 3500 | N73: 其中自治区贫困专项计划2名（面向哈密市招生2名），（理）2名
C74: 030101 | D74: 法学 | E74: 4 | F74: 45 | H74: 45 | M74: 3200
C75: 120402 | D75: 行政管理 | E75: 4 | F75: 40 | H75: 40 | M75: 3200
C76: 080904K | D76: 信息安全 | E76: 4 | F76: 40 | H76: 40 | M76: 3500
C77: 050301 | D77: 新闻学 | E77: 4 | F77: 40 | G77: 10 | H77: 30 | M77: 3200
C78: 120902 | D78: 酒店管理 | E78: 4 | F78: =H78+G78 -> 30 | H78: 30 | L78: 30 | M78: 3200 | N78: 其中4+0应用型人才培养试点工作专项计划30人，（理）30人
B79: 合计 | F79: =G79+H79 -> 764 | G79: =SUM(G63:G77) -> 11 | H79: =SUM(H63:H78) -> 753 | J79: =J63+J64+J65+J66+J67+J68+J69+J70+J71+J72+J73+J74+J76+J75+J77+J78 -> 53 | L79: =L66+L78 -> 60
B80: 双语班计划总计 | F80: =F62+F79 -> 804 | G80: =G62+G79 -> 11 | H80: =H62+H79 -> 793 | J80: =J62+J79 -> 65 | L80: =L62+L79 -> 60
A81: 民考汉 | B81: 本科一批 | C81: 020301K | D81: 金融学 | E81: 4 | F81: 21 | G81: 7 | H81: 14 | J81: 1 | M81: 3200 | N81: 其中国家贫困专项计划1名，（理）1名
C82: 050201 | D82: 英语 | E82: 4 | F82: 20 | G82: 10 | H82: 10 | M82: 3800
C83: 050301 | D83: 新闻学 | E83: 4 | F83: 10 | G83: 10 | M83: 3200
B84: 合计 | F84: 51 | G84: =SUM(G81:G83) -> 27 | H84: =SUM(H81:H83) -> 24 | J84: 1
B85: 本科二批 | C85: 020101 | D85: 经济学 | E85: 4 | F85: 9 | G85: 2 | H85: 7 | I85: 1 | J85: 3 | M85: 3200 | N85: 其中南疆单列专项计划3名，（理）3名，其中自治区贫困专项计划1名(面向额敏县招生1名)，（文）1名
C86: 120203K | D86: 会计学 | E86: 4 | F86: 13 | G86: 2 | H86: 11 | J86: 10 | M86: 3200 | N86: 其中国家贫困专项计划2名，（理）2名， 其中自治区贫困专项计划4名（面向哈密市招生1名，哈巴河县招生1名，奇台县招生2名），（理）4名，其中南疆单列专项计划4名，（理）4名
C87: 120901K | D87: 旅游管理 | E87: 4 | F87: 10 | G87: 5 | H87: 5 | M87: 3200
C88: 120902 | D88: 酒店管理 | E88: 4 | F88: 10 | G88: 5 | H88: 5 | M88: 3200
C89: 120302 | D89: 农村区域发展 | E89: 4 | F89: 5 | G89: 1 | H89: 4 | M89: 3200
C90: 020305T | D90: 金融数学 | E90: 4 | F90: 4 | H90: 4 | J90: 3 | M90: 3500 | N90: 其中南疆单列专项计划3名，（理）3名
C91: 020201K | D91: 财政学 | E91: 4 | F91: =H91+G91 -> 8 | G91: 3 | H91: 5 | M91: 3200
C92: 020202 | D92: 税收学 | E92: 4 | F92: =H92+G92 -> 12 | G92: 5 | H92: 7 | M92: 3200
C93: 080901 | D93: 计算机科学与技术 | E93: 4 | F93: =G93+H93 -> 5 | H93: 5 | M93: 3500
C94: 080904K | D94: 信息安全 | E94: 4 | F94: =G94+H94 -> 4 | H94: 4 | M94: 3500
C95: 120801 | D95: 电子商务 | E95: 4 | F95: =G95+H95 -> 4 | H95: 4 | M95: 3500
C96: 020303 | D96: 保险学 | E96: 4 | F96: =G96+H96 -> 11 | G96: 6 | H96: 5 | I96: 1 | M96: 3200 | N96: 其中国家贫困专项计划1名，（文）1名
C97: 120903 | D97: 会展经济与管理 | E97: 4 | F97: =G97+H97 -> 10 | G97: 5 | H97: 5 | M97: 3200
C98: 020302 | D98: 金融工程 | E98: 4 | F98: 5 | H98: 5 | M98: 3500
B99: 合计 | F99: 110 | G99: =G85+G86+G87+G88+G89+G90+G91+G92+G93+G94+G95+G96+G97+G98 -> 34 | H99: =H85+H86+H87+H88+H89+H90+H91+H92+H93+H94+H95+H96+H97+H98 -> 76 | I99: =SUM(I85:I98) -> 2 | J99: =SUM(J85:J98) -> 16
B100: 民考汉总计 | F100: =F99+F84 -> 161 | G100: =G99+G84 -> 61 | H100: =H99+H84 -> 100 | I100: =I84+I99 -> 2 | J100: =J84+J99 -> 17
A101: 本科计划总计 | F101: =SUM(G101:H101) -> 3200 | G101: =G100+G80+G60+G40 -> 1057 | H101: 2143 | I101: 40 | J101: 142 | K101: 30 | L101: 90
A102: 总计 | F102: =SUM(G102:H102) -> 3200 | G102: =G101 -> 1057 | H102: 2143 | I102: 40 | J102: 142 | K102: 30 | L102: 90
C103: 注：最终计划以自治区招办公布的为准。
